fUST/lending_fUST_20250207
["ID","MTS","AMOUNT","RATE_DAILY","PERIOD"]
[352046158,1738899038109,-502.58185862,0.00013698,2]
[352046159,1738899038118,-500.9016661,0.00013698,2]
[352046160,1738899038127,-500.0,0.00013698,2]
[352046161,1738899038136,-500.0,0.00013698,2]
[352046162,1738899038145,-501.93296659,0.00013698,2]
[352046163,1738899038154,-500.0,0.00013698,2]
[352046164,1738899038163,-500.0,0.00013698,2]
[352046165,1738899038172,-500.0,0.00013698,2]
[352046166,1738899038181,-500.0,0.00013698,2]
[352046167,1738899038192,-500.0,0.00013698,2]
[352046168,1738899038201,-503.66894428,0.00013698,2]
[352046169,1738899038210,-500.0,0.00013698,2]
[352046170,1738899038220,-500.0,0.00013698,2]
[352046171,1738899038229,-500.0,0.00013698,2]
[352046172,1738899038239,-610.7731166,0.00013698,2]
[352046173,1738899038248,-500.0,0.00013698,2]
[352046174,1738899038257,-500.0,0.00013698,2]
[352046175,1738899038267,-500.0,0.00013698,2]
[352046176,1738899038276,-500.0,0.00013698,2]
[352046177,1738899038285,-504.34589249,0.00013698,2]
[352046178,1738899038294,-500.0,0.00013698,2]
[352046179,1738899038304,-500.0,0.00013698,2]
[352046180,1738899038313,-500.0,0.00013698,2]
[352046181,1738899038332,-500.0,0.00013698,2]
[352046182,1738899038343,-500.0,0.00013698,2]
[352046183,1738899038352,-500.0,0.00013698,2]
[352046184,1738899038362,-500.0,0.00013698,2]
[352046185,1738899038371,-509.85916292,0.00013698,2]
[352046186,1738899038381,-504.02921014,0.00013698,2]
[352046187,1738899038390,-502.62702962,0.00013698,2]
[352046188,1738899038400,-500.0,0.00013698,2]
[352046189,1738899038409,-500.0,0.00013698,2]
[352046190,1738899038419,-500.0,0.00013698,2]
[352046191,1738899038428,-500.0,0.00013698,2]
[352046192,1738899038439,-500.0,0.00013698,2]
[352046193,1738899038449,-500.0,0.00013698,2]
[352046194,1738899038458,-500.0,0.00013698,2]
[352046195,1738899038468,-500.0,0.00013698,2]
[352046196,1738899038478,-500.0,0.00013698,2]
[352046197,1738899038487,-501.26706587,0.00013698,2]
[352046198,1738899038497,-576.31440687,0.00013698,2]
[352046199,1738899038507,-500.0,0.00013698,2]
[352046200,1738899038517,-500.0,0.00013698,2]
[352046201,1738899038527,-500.0,0.00013698,2]
[352046202,1738899038536,-469.42836379,0.00013698,2]
[352046203,1738899038546,-500.0,0.00013698,2]
[352046204,1738899038556,-501.82591696,0.00013698,2]
[352046205,1738899038566,-500.0,0.00013698,2]
[352046206,1738899038576,-500.0,0.00013698,2]
[352046207,1738899038585,-500.0,0.00013698,2]
[352046208,1738899038595,-500.0,0.00013698,2]
[352046209,1738899038605,-500.0,0.00013698,2]
[352046210,1738899038615,-501.7175172,0.00013698,2]
[352046211,1738899038625,-500.0,0.00013698,2]
[352046212,1738899038635,-502.51639516,0.00013698,2]
[352046213,1738899038645,-500.0,0.00013698,2]
[352046214,1738899038658,-500.0,0.00013698,2]
[352046215,1738899038668,-509.49349648,0.00013698,2]
[352046216,1738899038679,-500.0,0.00013698,2]
[352046217,1738899038691,-500.0,0.00013698,2]
[352046218,1738899038700,-500.0,0.00013698,2]
[352046219,1738899038711,-500.0,0.00013698,2]
[352046220,1738899038721,-525.92290262,0.00013698,2]
[352046221,1738899038732,-504.20903814,0.00013698,2]
[352046222,1738899038741,-500.0,0.00013698,2]
[352046223,1738899038751,-618.8,0.00013698,2]
[352046224,1738899038760,-500.0,0.00013698,2]
[352046225,1738899038771,-506.87922895,0.00013698,2]
[352046226,1738899038782,-500.0,0.00013698,2]
[352046227,1738899038791,-504.62353445,0.00013698,2]
[352046228,1738899038801,-500.0,0.00013698,2]
[352046229,1738899038811,-260.42653711,0.00013698,2]
[352046230,1738899038820,-229.51558749,0.00013698,2]
[352046231,1738899038830,-503.17844166,0.00013698,2]
[352046232,1738899038840,-500.0,0.00013698,2]
[352046233,1738899038850,-500.0,0.00013698,2]
[352046234,1738899038859,-500.0,0.00013698,2]
[352046235,1738899038869,-501.45354141,0.00013698,2]
[352046236,1738899038879,-504.08081738,0.00013698,2]
[352046237,1738899038888,-346.60732509,0.00013698,2]
[352046238,1738899038898,-502.5807354,0.00013698,2]
[352046239,1738899038908,-500.0,0.00013698,2]
[352046240,1738899038919,-501.57390669,0.00013698,2]
[352046241,1738899038935,-481.31445863,0.00013698,2]
[352046242,1738899038946,-500.0,0.00013698,2]
[352046243,1738899038957,-500.0,0.00013698,2]
[352046244,1738899038966,-500.0,0.00013698,2]
[352046245,1738899038976,-501.60152064,0.00013698,2]
[352046246,1738899038985,-500.0,0.00013698,2]
[352046247,1738899038995,-512.06,0.00013698,2]
[352046248,1738899039005,-576.49172729,0.00013698,2]
[352046249,1738899039202,-500.0,0.00013698,2]
[352046250,1738899039211,-502.3641626,0.00013698,2]
[352046251,1738899039221,-502.725926,0.00013698,2]
[352046252,1738899039230,-500.0,0.00013698,2]
[352046253,1738899039239,-501.83620821,0.00013698,2]
[352046254,1738899039248,-500.0,0.00013698,2]
[352046255,1738899039258,-500.0,0.00013698,2]
[352046256,1738899039268,-501.15657117,0.00013698,2]
[352046257,1738899039278,-502.56812229,0.00013698,2]
[352046258,1738899039287,-500.0,0.00013698,2]
[352046259,1738899039297,-501.59734077,0.00013698,2]
[352046260,1738899039306,-500.0,0.00013698,2]
[352046261,1738899039315,-502.6445118,0.00013698,2]
[352046262,1738899039325,-501.74331293,0.00013698,2]
[352046263,1738899039334,-501.05141148,0.00013698,2]
[352046264,1738899039343,-480.0,0.00013698,2]
[352046265,1738899039353,-503.70906678,0.00013698,2]
[352046266,1738899039362,-500.0,0.00013698,2]
[352046267,1738899039371,-503.08594097,0.00013698,2]
[352046268,1738899039381,-500.0,0.00013698,2]
[352046269,1738899039390,-500.0,0.00013698,2]
[352046270,1738899039400,-503.20246224,0.00013698,2]
[352046271,1738899039410,-500.0,0.00013698,2]
[352046272,1738899039420,-509.45731863,0.00013698,2]
[352046273,1738899039430,-500.0,0.00013698,2]
[352046274,1738899039441,-549.4,0.00013698,2]
[352046275,1738899039451,-500.0,0.00013698,2]
[352046276,1738899039461,-503.58731381,0.00013698,2]
[352046277,1738899039470,-500.0,0.00013698,2]
[352046278,1738899039480,-500.0,0.00013698,2]
[352046279,1738899039490,-500.0,0.00013698,2]
[352046280,1738899039499,-500.0,0.00013698,2]
[352046281,1738899039509,-500.0,0.00013698,2]
[352046282,1738899039519,-500.0,0.00013698,2]
[352046283,1738899039530,-500.0,0.00013698,2]
[352046284,1738899039539,-500.0,0.00013698,2]
[352046285,1738899039549,-500.0,0.00013698,2]
[352046286,1738899039559,-251.1796396,0.00013698,2]
[352046287,1738899039568,-271.12172605,0.00013698,2]
[352046288,1738899039578,-500.0,0.00013698,2]
[352046289,1738899039587,-500.0,0.00013698,2]
[352046290,1738899039597,-500.0,0.00013698,2]
[352046291,1738899039607,-500.0,0.00013698,2]
[352046292,1738899039616,-500.0,0.00013698,2]
[352046293,1738899039625,-500.0,0.00013698,2]
[352046294,1738899039635,-500.0,0.00013698,2]
[352046295,1738899039645,-517.39687289,0.00013698,2]
[352046296,1738899039658,-500.0,0.00013698,2]
[352046297,1738899039668,-383.60205076,0.00013698,2]
[352046298,1738899039677,-500.0,0.00013698,2]
[352046299,1738899039687,-500.0,0.00013698,2]
[352046300,1738899039698,-500.0,0.00013698,2]
[352046301,1738899039708,-500.0,0.00013698,2]
[352046302,1738899039717,-500.0,0.00013698,2]
[352046303,1738899039729,-500.0,0.00013698,2]
[352046304,1738899039739,-598.82,0.00013698,2]
[352046305,1738899039750,-500.0,0.00013698,2]
[352046306,1738899039760,-500.0,0.00013698,2]
[352046307,1738899039769,-500.0,0.00013698,2]
[352046308,1738899039779,-504.04404954,0.00013698,2]
[352046309,1738899039788,-500.0,0.00013698,2]
[352046310,1738899039798,-570.94226595,0.00013698,2]
[352046311,1738899039807,-1003.20100126,0.00013698,2]
[352046312,1738899039816,-500.0,0.00013698,2]
[352046313,1738899039825,-501.00492072,0.00013698,2]
[352046314,1738899039835,-500.0,0.00013698,2]
[352046315,1738899039844,-500.0,0.00013698,2]
[352046316,1738899039854,-501.70580386,0.00013698,2]
[352046317,1738899039863,-500.0,0.00013698,2]
[352046318,1738899039873,-643.85573182,0.00013698,2]
[352046319,1738899039882,-497.11613746,0.00013698,2]
[352046320,1738899039891,-500.0,0.00013698,2]
[352046321,1738899039901,-500.0,0.00013698,2]
[352046322,1738899039911,-500.0,0.00013698,2]
[352046323,1738899039920,-500.0,0.00013698,2]
[352046324,1738899039929,-503.13313021,0.00013698,2]
[352046325,1738899039939,-507.27022482,0.00013698,2]
[352046326,1738899039948,-500.0,0.00013698,2]
[352046327,1738899039958,-500.75167552,0.00013698,2]
[352046328,1738899039967,-500.0,0.00013698,2]
[352046329,1738899039976,-500.0,0.00013698,2]
[352046330,1738899039986,-500.0,0.00013698,2]
[352046331,1738899039995,-500.0,0.00013698,2]
[352046332,1738899040004,-500.0,0.00013698,2]
[352046333,1738899040014,-500.0,0.00013698,2]
[352046334,1738899040024,-500.0,0.00013698,2]
[352046335,1738899040034,-500.0,0.00013698,2]
[352046336,1738899040044,-501.10268527,0.00013698,2]
[352046337,1738899040054,-506.41560793,0.00013698,2]
[352046338,1738899040065,-500.87562422,0.00013698,2]
[352046339,1738899040074,-500.0,0.00013698,2]
[352046340,1738899040083,-501.95420132,0.00013698,2]
[352046341,1738899040092,-500.0,0.00013698,2]
[352046342,1738899040101,-500.0,0.00013698,2]
[352046343,1738899040110,-504.38943593,0.00013698,2]
[352046344,1738899040119,-500.0,0.00013698,2]
[352046345,1738899040129,-500.0,0.00013698,2]
[352046346,1738899040138,-500.0,0.00013698,2]
[352046347,1738899040148,-500.0,0.00013698,2]
[352046348,1738899040157,-500.40615099,0.00013698,2]
[352046349,1738899040167,-501.68337438,0.00013698,2]
[352046350,1738899040176,-500.0,0.00013698,2]
[352046351,1738899040185,-559.40783653,0.00013698,2]
[352046352,1738899040194,-502.39802918,0.00013698,2]
[352046353,1738899040203,-500.0,0.00013698,2]
[352046354,1738899040213,-512.0178779,0.00013698,2]
[352046355,1738899040223,-500.0,0.00013698,2]
[352046356,1738899040232,-500.0,0.00013698,2]
[352046357,1738899040242,-500.0,0.00013698,2]
[352046358,1738899040252,-500.0,0.00013698,2]
[352046359,1738899040261,-500.0,0.00013698,2]
[352046360,1738899040271,-500.0,0.00013698,2]
[352046361,1738899040280,-501.28366464,0.00013698,2]
[352046362,1738899040290,-500.0,0.00013698,2]
[352046363,1738899040299,-503.15495327,0.00013698,2]
[352046364,1738899040308,-501.65645557,0.00013698,2]
[352046365,1738899040318,-504.20802069,0.00013698,2]
[352046366,1738899040328,-500.0,0.00013698,2]
[352046367,1738899040337,-500.69648092,0.00013698,2]
[352046368,1738899040347,-500.0,0.00013698,2]
[352046369,1738899040358,-500.0,0.00013698,2]
[352046370,1738899040368,-500.0,0.00013698,2]
[352046371,1738899040378,-501.47203327,0.00013698,2]
[352046372,1738899040388,-500.0,0.00013698,2]
[352046373,1738899040398,-500.0,0.00013698,2]
[352046374,1738899040407,-500.0,0.00013698,2]
[352046375,1738899040417,-538.53685066,0.00013698,2]
[352046376,1738899040426,-501.52272076,0.00013698,2]
[352046377,1738899040436,-2544.73,0.00013698,2]
[352046378,1738899040445,-532.44,0.00013698,2]
[352046379,1738899040461,-501.36327129,0.00013698,2]
[352046380,1738899040475,-500.0,0.00013698,2]
[352046381,1738899040486,-500.0,0.00013698,2]
[352046382,1738899040496,-500.0,0.00013698,2]
[352046383,1738899040506,-500.0,0.00013698,2]
[352046384,1738899040516,-500.0,0.00013698,2]
[352046385,1738899040526,-500.0,0.00013698,2]
[352046386,1738899040537,-500.0,0.00013698,2]
[352046387,1738899040547,-244.29571201,0.00013698,2]
[352046388,1738899040557,-500.80621761,0.00013698,2]
[352046389,1738899040566,-500.0,0.00013698,2]
[352046390,1738899040576,-501.5621144,0.00013698,2]
[352046391,1738899040586,-512.55175563,0.00013698,2]
[352046392,1738899040596,-507.06486094,0.00013698,2]
[352046393,1738899040605,-503.63500703,0.00013698,2]
[352046394,1738899040615,-500.0,0.00013698,2]
[352046395,1738899040624,-501.92033558,0.00013698,2]
[352046396,1738899040634,-358.39100061,0.00013698,2]
[352046397,1738899040644,-500.0,0.00013698,2]
[352046398,1738899040656,-503.94222141,0.00013698,2]
[352046399,1738899040666,-500.0,0.00013698,2]
[352046400,1738899040676,-378.67856845,0.00013698,2]
[352046401,1738899040686,-500.0,0.00013698,2]
[352046402,1738899040697,-500.0,0.00013698,2]
[352046403,1738899040707,-306.02994906,0.00013698,2]
[352046404,1738899040717,-500.0,0.00013698,2]
[352046405,1738899040728,-500.0,0.00013698,2]
[352046406,1738899040737,-501.98363984,0.00013698,2]
[352046407,1738899040747,-501.6132321,0.00013698,2]
[352046408,1738899040758,-501.04516685,0.00013698,2]
[352046409,1738899040779,-500.0,0.00013698,2]
[352046410,1738899040793,-500.0,0.00013698,2]
[352046411,1738899040806,-3244.38,0.00013698,2]
[352046412,1738899040820,-502.42261787,0.00013698,2]
[352046413,1738899040834,-694.93,0.00013698,2]
[352046414,1738899040847,-502.86286128,0.00013698,2]
[352046415,1738899040858,-500.0,0.00013698,2]
[352046416,1738899040869,-501.86280008,0.00013698,2]
[352046417,1738899040879,-504.96767484,0.00013698,2]
[352046418,1738899040893,-503.95116198,0.00013698,2]
[352046419,1738899040905,-500.0,0.00013698,2]
[352046420,1738899040918,-505.22785913,0.00013698,2]
[352046421,1738899040929,-918.93,0.00013698,2]
[352046422,1738899040942,-500.0,0.00013698,2]
[352046423,1738899040954,-500.0,0.00013698,2]
[352046424,1738899040966,-270.94999317,0.00013698,2]
[352046425,1738899040978,-406.982678,0.00013699,2]
[352046426,1738899040991,-500.0,0.00013699,2]
[352046427,1738899041003,-500.0,0.00013699,2]
[352046428,1738899041016,-500.0,0.00013699,2]
[352046429,1738899041028,-500.0,0.00013699,2]
[352046430,1738899041039,-500.0,0.00013699,2]
[352046431,1738899041052,-500.0,0.00013699,2]
[352046432,1738899041065,-500.0,0.00013699,2]
[352046433,1738899041076,-247.49387622,0.00013699,2]
[352046434,1738899041088,-500.0,0.00013699,2]
[352046435,1738899041099,-500.0,0.00013699,2]
[352046436,1738899041110,-261.12286286,0.00013699,2]
[352046437,1738899041124,-500.0,0.00013699,2]
[352046438,1738899041136,-500.0,0.00013699,2]
[352046439,1738899041148,-500.0,0.00013699,2]
[352046440,1738899041160,-500.0,0.00013699,2]
[352046441,1738899041172,-500.0,0.00013699,2]
[352046442,1738899041184,-500.0,0.00013699,2]
[352046443,1738899041196,-500.0,0.00013699,2]
[352046444,1738899041207,-500.0,0.00013699,2]
[352046445,1738899041218,-500.0,0.00013699,2]
[352046446,1738899041229,-500.0,0.00013699,2]
[352046447,1738899041240,-500.0,0.00013699,2]
[352046448,1738899041250,-500.0,0.00013699,2]
[352046449,1738899041261,-500.0,0.00013699,2]
[352046450,1738899041273,-500.0,0.00013699,2]
[352046451,1738899041283,-152.0,0.00013792,2]
[352046452,1738899041295,-510.96599223,0.00013834,2]
[352046453,1738899041306,-500.0,0.00013835,2]
[352046454,1738899041317,-500.0,0.00013835,2]
[352046455,1738899041330,-233.29306773,0.00013835,2]
[352046456,1738899041342,-506.15126715,0.00013835,2]
[352046457,1738899041354,-567.02678144,0.00013835,2]
[352046458,1738899041365,-500.0,0.00013835,2]
[352046459,1738899041376,-500.0,0.00013835,2]
[352046460,1738899041392,-512.1755892,0.00013835,2]
[352046461,1738899041405,-500.0,0.00013835,2]
[352046462,1738899041417,-530.10802178,0.00013835,2]
[352046463,1738899041431,-502.4606202,0.00013835,2]
[352046464,1738899041443,-501.96749212,0.00013835,2]
[352046465,1738899041454,-506.55443968,0.00013835,2]
[352046466,1738899041466,-500.0,0.00013835,2]
[352046467,1738899041477,-500.0,0.00013835,2]
[352046468,1738899041487,-504.10814525,0.00013835,2]
[352046469,1738899041498,-504.28871981,0.00013835,2]
[352046470,1738899041508,-503.69229465,0.00013835,2]
[352046471,1738899041518,-504.69941932,0.00013835,2]
[352046472,1738899041529,-636.53750785,0.00013835,2]
[352046473,1738899041541,-503.17402534,0.00013835,2]
[352046474,1738899041553,-502.60644992,0.00013835,2]
[352046475,1738899041565,-618.8,0.00013835,2]
[352046476,1738899041578,-228.44976778,0.00013835,2]
[352046477,1738899041590,-500.0,0.00013835,2]
[352046478,1738899041602,-500.0,0.00013835,2]
[352046479,1738899041613,-225.35743499,0.00013835,2]
[352046480,1738899041623,-503.41753584,0.00013835,2]
[352046481,1738899041633,-500.0,0.00013835,2]
[352046482,1738899041647,-253.22,0.00013835,2]
[352046483,1738899041660,-514.28265627,0.00013835,2]
[352046484,1738899041670,-502.49519047,0.00013835,2]
[352046485,1738899041681,-500.0,0.00013835,2]
[352046486,1738899041696,-500.0,0.00013835,2]
[352046487,1738899041707,-500.0,0.00013835,2]
[352046488,1738899041718,-500.0,0.00013835,2]
[352046489,1738899041729,-500.0,0.00013835,2]
[352046490,1738899041740,-598.82,0.00013835,2]
[352046491,1738899041750,-503.64,0.00013835,2]
[352046492,1738899041760,-525.54985248,0.00013835,2]
[352046493,1738899041771,-500.0,0.00013835,2]
[352046494,1738899041782,-500.0,0.00013835,2]
[352046495,1738899041792,-502.85590627,0.00013835,2]
[352046496,1738899041802,-500.0,0.00013835,2]
[352046497,1738899041813,-500.0,0.00013835,2]
[352046498,1738899041824,-501.99948763,0.00013835,2]
[352046499,1738899041835,-206.67116412,0.00013835,2]
[352046500,1738899041846,-500.0,0.00013835,2]
[352046501,1738899041857,-500.0,0.00013835,2]
[352046502,1738899041868,-502.28088577,0.00013835,2]
[352046503,1738899041879,-500.0,0.00013835,2]
[352046504,1738899041890,-506.19296581,0.00013835,2]
[352046505,1738899041901,-500.0,0.00013835,2]
[352046506,1738899041912,-500.0,0.00013835,2]
[352046507,1738899041923,-500.0,0.00013835,2]
[352046508,1738899041933,-500.0,0.00013835,2]
[352046509,1738899041945,-500.0,0.00013835,2]
[352046510,1738899041956,-2544.73,0.00013835,2]
[352046511,1738899041967,-532.44,0.00013835,2]
[352046512,1738899041979,-500.0,0.00013835,2]
[352046513,1738899041989,-500.0,0.00013835,2]
[352046514,1738899042000,-399.15078858,0.00013835,2]
[352046515,1738899042011,-500.0,0.00013835,2]
[352046516,1738899042023,-500.0,0.00013835,2]
[352046517,1738899042035,-500.0,0.00013835,2]
[352046518,1738899042046,-500.0,0.00013835,2]
[352046519,1738899042057,-3244.38,0.00013835,2]
[352046520,1738899042068,-694.93,0.00013835,2]
[352046521,1738899042079,-918.93,0.00013835,2]
[352046522,1738899042090,-500.0,0.00013835,2]
[352046523,1738899042101,-154.5548552,0.000139,2]
[352046524,1738899042112,-154.4937493,0.000139,2]
[352046525,1738899042123,-500.0,0.00013972,2]
[352046526,1738899042133,-503.67093681,0.00013972,2]
[352046527,1738899042144,-500.0,0.00013972,2]
[352046528,1738899042154,-500.0,0.00013972,2]
[352046529,1738899042165,-500.0,0.00013972,2]
[352046530,1738899042176,-154.3787928,0.00013972,2]
[352046531,1738899042187,-618.8,0.00013972,2]
[352046532,1738899042198,-500.0,0.00013972,2]
[352046533,1738899042209,-500.0,0.00013972,2]
[352046534,1738899042219,-504.14358661,0.00013972,2]
[352046535,1738899042229,-500.0,0.00013972,2]
[352046536,1738899042240,-598.82,0.00013972,2]
[352046537,1738899042251,-500.0,0.00013972,2]
[352046538,1738899042262,-500.0,0.00013972,2]
[352046539,1738899042272,-500.0,0.00013972,2]
[352046540,1738899042283,-500.0,0.00013972,2]
[352046541,1738899042294,-500.0,0.00013972,2]
[352046542,1738899042305,-500.0,0.00013972,2]
[352046543,1738899042316,-502.27859123,0.00013972,2]
[352046545,1738899042326,-2544.73,0.00013972,2]
[352046547,1738899042337,-532.44,0.00013972,2]
[352046549,1738899042348,-500.0,0.00013972,2]
[352046551,1738899042359,-500.0,0.00013972,2]
[352046552,1738899042369,-3244.38,0.00013972,2]
[352046553,1738899042380,-694.93,0.00013972,2]
[352046554,1738899042391,-918.93,0.00013972,2]
[352046556,1738899042402,-500.0,0.00013972,2]
[352046558,1738899042413,-400.0,0.00013973,2]
[352046560,1738899042424,-406.13864036,0.0001399,2]
[352046562,1738899042435,-154.5548552,0.00014,2]
[352046564,1738899042447,-215.772047,0.00014,2]
[352046566,1738899042457,-154.5548552,0.00014,2]
[352046568,1738899042468,-215.772047,0.00014,2]
[352046571,1738899042479,-154.5548552,0.00014,2]
[352046573,1738899042489,-215.772047,0.00014,2]
[352046575,1738899042500,-154.5548552,0.00014,2]
[352046577,1738899042511,-154.5548552,0.00014,2]
[352046579,1738899042521,-154.5548552,0.00014,2]
[352046581,1738899042532,-154.5548552,0.00014,2]
[352046582,1738899042542,-284.2671596,0.00014,2]
[352046583,1738899042553,-2000.0,0.00014027,28]
[352046585,1738899042563,-2000.0,0.00014027,28]
[352046586,1738899042574,-2000.0,0.00014027,28]
[352046587,1738899042584,-2000.0,0.00014027,28]
[352046595,1738899042769,-2000.0,0.00014027,28]
[352046598,1738899042781,-2000.0,0.00014027,28]
[352046600,1738899042791,-2000.0,0.00014027,28]
[352046602,1738899042801,-2000.0,0.00014027,28]
[352046604,1738899042811,-2000.0,0.00014027,28]
[352046606,1738899042822,-2000.0,0.00014027,28]
[352046608,1738899042832,-1595.0,0.00014027,30]
[352046610,1738899042841,-500.0,0.00014099,2]
[352046612,1738899042851,-628.36731228,0.00014099,2]
[352046614,1738899042861,-154.5548552,0.000141,2]
[352046616,1738899042871,-165.9610248,0.000141,2]
[352046618,1738899042880,-438.123427,0.000141,2]
[352046620,1738899042890,-354.5958847,0.000141,2]
[352046622,1738899042900,-215.772047,0.000141,2]
[352046624,1738899042910,-154.5548552,0.000141,2]
[352046626,1738899042921,-47864.87889402,0.000141,2]
[352046628,1738899042931,-503.34594976,0.00014107,2]
[352046630,1738899042944,-500.0,0.00014109,2]
[352046632,1738899042954,-618.8,0.00014109,2]
[352046634,1738899042964,-500.0,0.00014109,2]
[352046636,1738899042974,-500.0,0.00014109,2]
[352046638,1738899042984,-500.0,0.00014109,2]
[352046640,1738899042994,-598.82,0.00014109,2]
[352046642,1738899043004,-500.0,0.00014109,2]
[352046644,1738899043014,-642.89,0.00014109,2]
[352046646,1738899043024,-500.0,0.00014109,2]
[352046648,1738899043034,-500.0,0.00014109,2]
[352046649,1738899043044,-500.0,0.00014109,2]
[352046650,1738899043055,-460.78282676,0.00014109,2]
[352046651,1738899043065,-2544.73,0.00014109,2]
[352046652,1738899043076,-532.44,0.00014109,2]
[352046653,1738899043086,-500.0,0.00014109,2]
[352046654,1738899043096,-3244.38,0.00014109,2]
[352046656,1738899043106,-694.93,0.00014109,2]
[352046658,1738899043116,-918.93,0.00014109,2]
[352046660,1738899043126,-500.0,0.00014109,2]
[352046662,1738899043135,-500.0,0.00014197,2]
[352046664,1738899043145,-184.74230259,0.00014197,2]
[352046666,1738899043154,-630.73164601,0.00014213,2]
[352046668,1738899043163,-500.0,0.00014231,2]
[352046670,1738899043173,-506.16342408,0.00014231,2]
[352046671,1738899043183,-500.0,0.00014231,2]
[352046672,1738899043196,-500.0,0.00014246,2]
[352046673,1738899043206,-618.8,0.00014246,2]
[352046674,1738899043216,-500.0,0.00014246,2]
[352046675,1738899043226,-500.0,0.00014246,2]
[352046676,1738899043235,-500.0,0.00014246,2]
[352046677,1738899043244,-598.82,0.00014246,2]
[352046678,1738899043254,-500.0,0.00014246,2]
[352046679,1738899043264,-500.0,0.00014246,2]
[352046680,1738899043274,-500.0,0.00014246,2]
[352046681,1738899043283,-500.0,0.00014246,2]
[352046682,1738899043293,-2544.73,0.00014246,2]
[352046683,1738899043303,-532.44,0.00014246,2]
[352046684,1738899043314,-500.0,0.00014246,2]
[352046685,1738899043323,-3244.38,0.00014246,2]
[352046686,1738899043333,-694.93,0.00014246,2]
[352046687,1738899043343,-918.93,0.00014246,2]
[352046688,1738899043352,-500.0,0.00014246,2]
[352046689,1738899043362,-500.0,0.00014247,2]
[352046690,1738899043372,-563.92975029,0.00014276,2]
[352046691,1738899043381,-500.24662846,0.00014276,2]
[352046692,1738899043391,-500.0,0.00014276,2]
[352046693,1738899043401,-184.91628837,0.00014301,2]
[352046694,1738899043411,-503.60963945,0.00014311,2]
[352046695,1738899043420,-500.0,0.00014383,2]
[352046696,1738899043430,-618.8,0.00014383,2]
[352046697,1738899043440,-500.0,0.00014383,2]
[352046698,1738899043449,-500.0,0.00014383,2]
[352046699,1738899043458,-598.82,0.00014383,2]
[352046700,1738899043468,-500.0,0.00014383,2]
[352046701,1738899043478,-500.0,0.00014383,2]
[352046702,1738899043488,-500.0,0.00014383,2]
[352046703,1738899043498,-2544.73,0.00014383,2]
[352046704,1738899043507,-532.44,0.00014383,2]
[352046705,1738899043517,-500.0,0.00014383,2]
[352046706,1738899043526,-3244.38,0.00014383,2]
[352046707,1738899043536,-694.93,0.00014383,2]
[352046708,1738899043545,-918.93,0.00014383,2]
[352046709,1738899043555,-500.0,0.00014383,2]
[352046710,1738899043565,-600.0,0.000144,2]
[352046711,1738899043575,-1163.77342583,0.00014455,2]
[352046712,1738899043585,-150.0,0.00014482,2]
[352046713,1738899043595,-537.0,0.00014482,2]
[352046714,1738899043604,-2032.663,0.00014482,2]
[352046715,1738899043614,-2298.0,0.00014482,2]
[352046716,1738899043623,-396.0,0.00014482,2]
[352046717,1738899043632,-184.91628837,0.00014493,2]
[352046718,1738899043642,-1253.87,0.000145,2]